Cogmind - Beta 16.1 @@@ ROGUE MODE // 2026.04.09 @ 21:14:32 Player: SunShine214 Result: Destroyed by HU-WF9(j) with Overtuned Pulse Rifle Performance ------------- Evolutions (0) 0 Regions Visited (3) 600 Robots Destroyed (31) 155 Value Destroyed (723) 723 Prototype IDs (13) 260 Alien Tech Used (0) 0 Bonus (-113) -113 TOTAL SCORE: 1625 Bonus ------- Follower Combat Kills 40 Friendly Fire -153 Cogmind --------- Core Integrity 0/250 Matter 272/300 Energy 44/100 System Corruption 0% Temperature Cool (66) Movement Flying (165) Ox1 Location -7/Recycling Parts ------- > --- POWER (1) -------- (None) > --- PROPULSION (2) --- Medium Treads Makeshift Flight Unit > --- UTILITY (2) ------ Medium Storage Unit > --- WEAPON (2) ------- Heavy Riot Gun Blade Saw > --- INVENTORY (10) --- Improved Weapon Shielding Hardened Heavy Armor Plating Missile Launcher 1B-0RG's Assimilator Peak State ------------ > --- POWER ------------ Light Nuclear Core > --- PROPULSION ------- Medium Treads Makeshift Flight Unit > --- UTILITY ---------- Medium Storage Unit Layered Light Armor Plating > --- WEAPON ----------- Heavy Riot Gun Missile Launcher > --- INVENTORY -------- Improved Weapon Shielding Hardened Heavy Armor Plating Missile Launcher 1B-0RG's Assimilator Blade Saw [Rating: 31] Favorites ----------- Power Light Nuclear Core Engine Ion Engine Power Core Light Nuclear Core Propulsion Flight Unit Treads Light Treads Flight Unit Flight Unit Utility Medium Storage Unit Device Improved Terrain Scanner Storage Medium Storage Unit Processor Signal Interpreter Protection Layered Light Armor Plating Weapon Grenade Launcher Energy Gun Heavy Riot Gun Ballistic Gun Barrage Gun Launcher Grenade Launcher Special Weapon Mining Laser Slashing Weapon Blade Saw Build | -11 -10 -10 -7 ------- Run | Yrd Mat Sub Rec Slots Evolved . | . . . . Power . | . . . . Propulsion . | . . . . Utility . | . . . . Weapon . | . . . . Parts Attached 23 | 7 2 8 6 Power 2 | 1 . . 1 Engine 1 | 1 . . . Core 1 | . . . 1 Reactor . | . . . . Propulsion 6 | 2 . 3 1 Treads 3 | 2 . . 1 Leg . | . . . . Wheel . | . . . . Hover . | . . . . Flight 3 | . . 3 . Utility 7 | 2 1 3 1 Device 3 | 1 . 2 . Storage 2 | 1 1 . . Processor 1 | . . 1 . Hackware . | . . . . Protection 1 | . . . 1 Artifact . | . . . . Weapon 8 | 2 1 2 3 Energy Gun 3 | 2 . 1 . Energy Cannon . | . . . . Ballistic Gun 1 | . . . 1 Ballistic Cannon . | . . . . Launcher 2 | . . 1 1 Special Weapon 1 | . 1 . . Impact Weapon . | . . . . Slashing Weapon 1 | . . . 1 Piercing Weapon . | . . . . Special Melee Weapon . | . . . . Unidentified Prototypes . | . . . . Parts Lost 8 | . . 5 3 Power 1 | . . . 1 Propulsion 2 | . . 2 . Utility 2 | . . 1 1 Weapon 3 | . . 2 1 Highest Loss Streak 3 | . . 2 3 To Critical Strikes . | . . . . Average Backups 4 | . 5 5 4 Power . | . . . . Propulsion . | . 1 . . Utility . | . 2 . 1 Weapon 2 | . 1 2 2 Tool/Special . | . . . . Unused Backups 8 | . . 1 7 Power . | . . . . Propulsion . | . . . . Utility 3 | . . 1 2 Weapon 4 | . . . 4 Tool/Special 1 | . . . 1 Average Slot Usage (%) 89 | . 100 78 98 Engine 4 | . 14 6 . Core 5 | . . . 13 Treads 6 | . 28 5 . Flight 21 | . . 21 27 Device 3 | . 14 3 . Storage 13 | . 14 13 14 Processor 5 | . . 10 1 Protection 5 | . . . 12 Energy Gun 9 | . 27 1 13 Ballistic Gun 2 | . . . 5 Launcher 9 | . . 13 8 Special Weapon 1 | . . 2 . Peak Build Rating 31 | 9 9 18 31 Average Rating 18 | 6 9 13 27 On Entrance 8 | . 9 9 14 Avg Prop Armor Cover (%) 3 | . . 2 9 Naked Turns . | . . . . Heaviest Build 29 | 14 19 20 29 Greatest Support 40 | 40 40 40 12 Greatest Overweight (x) 5 | . . 5 3 Average Overweight (x) . | . . . 1 Largest Inventory Capacity 10 | 8 10 10 10 Average Capacity 9 | 7 9 9 10 Most Carried 10 | 1 8 10 10 Average Carried 8 | . 5 8 9 Final Capacity 10 | 8 10 10 10 Final Carried 9 | 1 8 9 9 Class Distribution -------------------- 91% | Mutant 8% | Commander-Mutant Dominant Class ---------------- Mutant | -10/Materials Mutant | -10/Subcaves Mutant | -7/Recycling Resources | -11 -10 -10 -7 ----------- Run | Yrd Mat Sub Rec Matter Collected 873 | 270 30 330 243 Remotely . | . . . . Salvage Created 657 | 120 100 285 152 Parts 51 | 9 13 22 7 Haulers Intercepted . | . . . . Recyclers Shooed 2 | 1 . . 1 Parts Field Recycled . | . . . . Retrieved Matter . | . . . . Parts Self-Destructed 6 | . . 6 . Prevented . | . . . . Parts Restored . | . . . . Kills | -11 -10 -10 -7 ------- Run | Yrd Mat Sub Rec Combat Hostiles Destroyed 24 | . 6 16 2 Guns 7 | . 6 . 1 AOE 16 | . . 16 . Classes Destroyed 9 | 3 2 2 2 Worker 1 | 1 . . . Tunneler 3 | 3 . . . Recycler 1 | 1 . . . Operator 1 | . 1 . . Swarmer 11 | . 6 4 1 Grunt 1 | . . 1 . Hunter 1 | . . . 1 Subdweller 11 | . . 11 . Scrapper 1 | . . . 1 Best Kill Streak 4 | 4 3 4 1 Combat Bots Only 4 | . 3 4 1 Max Kills in Single Turn 2 | 1 1 2 1 Gunslinging . | . . . . Exploded 2 | . . 2 . Melee . | . . . . Uniques/NPCs Destroyed . | . . . . Combat | -11 -10 -10 -7 -------- Run | Yrd Mat Sub Rec Hostile Shots Fired 117 | . 32 59 26 Missed 42 | . 5 31 6 Hits 75 | . 27 28 20 Projectile 75 | . 27 28 20 Critical Strikes 1 | . . . 1 Damage Taken 1021 | . 207 443 371 Core 257 | . 31 110 116 Absorbed by Shields . | . . . . Core Remaining (%) 100 | 100 . . . Volleys Fired 83 | 12 19 41 11 Largest 2 | 2 2 1 2 Hottest 150 | 90 150 100 96 Shots Fired 123 | 24 38 41 20 Gun 80 | 24 34 3 19 Cannon . | . . . . Launcher 37 | . . 36 1 Special 6 | . 4 2 . Kinetic 8 | . . . 8 Thermal 64 | 24 38 2 . Explosive 37 | . . 36 1 Electromagnetic 14 | . . 3 11 Robot Hit Streak 14 | 4 5 14 8 Robot Miss Streak 4 | 2 2 2 4 Penetration Max . | . . . . Secondary Targets . | . . . . Shots Hit Robots 61 | 14 16 17 14 Core Hits 45 | 6 8 27 4 Critical Kills . | . . . . Critical Parts Destroyed . | . . . . Critical Strikes 2 | 1 1 . . Burn 2 | 1 1 . . Melee Attacks 1 | . . . 1 Impact . | . . . . Slashing 1 | . . . 1 Piercing . | . . . . Sneak Attacks . | . . . . Combat Hostiles . | . . . . Follow-up Attacks . | . . . . Damage Inflicted 2240 | 188 188 1565 299 Guns 619 | 188 188 . 243 Cannons . | . . . . Explosions 1618 | . . 1565 53 Melee . | . . . . Ramming 3 | . . . 3 Kinetic 56 | . . . 56 Thermal 376 | 188 188 . . Explosive 1618 | . . 1565 53 Electromagnetic 187 | . . . 187 Impact . | . . . . Slashing . | . . . . Piercing . | . . . . Highest Corruption . | . . . . Average Corruption . | . . . . Corruption Purged . | . . . . Corruption Blocked . | . . . . Overload Shots . | . . . . Overflow Damage 8 | . . 8 . Projectiles . | . . . . Explosions 8 | . . 8 . Melee . | . . . . Knockbacks . | . . . . Impact . | . . . . Kinetic . | . . . . Secondary . | . . . . Self-Inflicted Damage 67 | . . 66 1 Shots 2 | . . 2 . Rammed 4 | . 1 . 3 Targets Rammed 4 | . 1 . 3 Kicked . | . . . . Crushed . | . . . . Highest Temperature 273 | 150 270 . 273 Average Temperature 86 | 54 97 . 95 Received Heat Transfer 217 | . . 84 133 Effects 1 | . . . 1 Energy Bleed 1 | . . . 1 Siege Activations . | . . . . Martial Activations . | . . . . Shielding Activations . | . . . . Robots Disrupted . | . . . . Combat Hostiles . | . . . . Robots Corrupted 1 | . . . 1 Combat Hostiles 1 | . . . 1 Parts Fried . | . . . . Impact Corruptions . | . . . . Robots Melted . | . . . . Combat Hostiles . | . . . . Parts Melted 3 | . 3 . . Heat Transferred 1152 | 582 570 . . Parts Sabotaged . | . . . . Parts Stolen . | . . . . Parts Stripped . | . . . . Power Chain Reactions . | . . . . Alert | -11 -10 -10 -7 ------- Run | Yrd Mat Sub Rec Maximum Alert Level . | . . . . Low Security (%) 100 | 100 100 . 100 Level 1 . | . . . . Level 2 . | . . . . Level 3 . | . . . . Level 4 . | . . . . Level 5 . | . . . . High Security . | . . . . Max Security . | . . . . Peak Influence 70 | 10 70 . 68 Initial 68 | . . . 68 Average 7 | 1 17 . 5 Influence Increases 457 | 25 160 185 87 Destroy 0b10 Robot/C 280 | . 120 100 60 Destroy 0b10 Robot/NC 30 | 25 5 . . Destroy Leader 30 | . 20 10 . Allied During Kill 1 | . . . 1 Successful Hack 15 | . . . 15 Disable Machine 15 | . 15 . . Destroy Structure 11 | . . . 11 Lose Combat Pursuer 75 | . . 75 . Influence Decreases 457 | 25 160 42 230 Entered New Map 75 | . . . 75 Time Decay 370 | 25 160 32 153 Lost Part 12 | . . 10 2 Squads Dispatched 1 | . 1 . . Investigation . | . . . . Extermination . | . . . . Reinforcement 1 | . 1 . . Assault . | . . . . Garrison . | . . . . Intercept . | . . . . Searches Triggered . | . . . . Construction Impeded . | . . . . Haulers Reinforced . | . . . . Active Scanning Responses . | . . . . Cargo Convoy Interrupts . | . . . . Stealth | -11 -10 -10 -7 --------- Run | Yrd Mat Sub Rec Distress Signals . | . . . . Communications Jammed . | . . . . Distress Signals . | . . . . Times Spotted 33 | . 9 20 4 Peak Tracking Total 4 | . 3 4 3 Tactical Retreats 1 | . . 1 . Traps | -11 -10 -10 -7 ------- Run | Yrd Mat Sub Rec Traps Triggered . | . . . . Indirectly . | . . . . Trap Hack Attempts . | . . . . Triggered . | . . . . Disarmed . | . . . . Reprogrammed . | . . . . Reused . | . . . . Traps Extracted . | . . . . Installed . | . . . . Triggered . | . . . . Machines | -11 -10 -10 -7 ---------- Run | Yrd Mat Sub Rec Machines Disabled 1 | . 1 . . Max in Single Turn 1 | . 1 . . Machines Repaired . | . . . . Machines Dismantled . | . . . . Machines Sabotaged . | . . . . Overloaded Fab Kills . | . . . . Hacking | -11 -10 -10 -7 --------- Run | Yrd Mat Sub Rec Machines Accessed 4 | . 1 1 2 Terminals 3 | . 1 . 2 Fabricators . | . . . . Repair Stations . | . . . . Recycling Units . | . . . . Scanalyzers . | . . . . Garrison Access . | . . . . Total Hacks 7 | . 2 1 4 Successful 4 | . . 1 3 Failed 3 | . 2 . 1 Catastrophic . | . . . . Database Lockouts . | . . . . Manual 2 | . . . 2 Terminals 6 | . 2 . 4 Fabricators . | . . . . Repair Stations . | . . . . Recycling Units . | . . . . Scanalyzers . | . . . . Garrison Access . | . . . . Terminal Hacks 4 | . . 1 3 Record 1 | . . . 1 Part Schematic 2 | . . . 2 Proto ID Catalog 1 | . . 1 . Fabricator Hacks . | . . . . Repair Station Hacks . | . . . . Recycling Unit Hacks . | . . . . Scanalyzer . | . . . . Garrison Access Hacks . | . . . . Unauthorized Hacks . | . . . . Terminals . | . . . . Fabricators . | . . . . Repair Stations . | . . . . Recycling Units . | . . . . Scanalyzers . | . . . . Garrison Access . | . . . . Data Cores Recovered . | . . . . Used . | . . . . Hacking Detections 3 | . 1 . 2 Full Trace Events . | . . . . Feedback Events . | . . . . Feedback Blocked . | . . . . Robot Schematics Acquired . | . . . . Robots Built . | . . . . Authchips . | . . . . Time . | . . . . Total Robot Build Rating . | . . . . Part Schematics Acquired 2 | . . . 2 Parts Built . | . . . . Authchips . | . . . . Time . | . . . . Total Part Build Rating . | . . . . Part Studies Acquired . | . . . . Parts Repaired . | . . . . Time . | . . . . Parts Recycled . | . . . . Recycled Matter . | . . . . Retrieved Matter . | . . . . Retrieved Components . | . . . . Parts Scanalyzed . | . . . . Part Schematics Acquired . | . . . . Parts Damaged . | . . . . Bothacking | -11 -10 -10 -7 ------------ Run | Yrd Mat Sub Rec Used RIF Installer . | . . . . Robots Hacked . | . . . . Non-combat . | . . . . Combat . | . . . . Robot Hacks Applied . | . . . . Relay Couplers Released . | . . . . Fabnet Peak Effective % . | . . . . Robots Rewired 4 | . . . 4 Allies Hacked . | . . . . Hacks Repelled . | . . . . Allies | -11 -10 -10 -7 -------- Run | Yrd Mat Sub Rec Total Allies 4 | . . . 4 Largest Group 4 | . . . 4 Highest-Rated Group 75 | . . . 75 Highest-Rated Ally 32 | . . . 32 Total Orders . | . . . . Ally Attacks 8 | . . . 8 Total Damage 270 | . . . 270 Kills 2 | . . . 2 Allies Corrupted . | . . . . Allies Melted . | . . . . Intel | -11 -10 -10 -7 ------- Run | Yrd Mat Sub Rec Active Infowar (turns) 1091 | 76 563 452 . Sensors 452 | . . 452 . Terrain 639 | 76 563 . . Structural 22 | . . 22 . Robot Analysis Total . | . . . . Derelict Logs Recovered 1 | . . 1 . Drone Launches . | . . . . Drone Recoveries . | . . . . Exploration | -11 -10 -10 -7 ------------- Run | Yrd Mat Sub Rec Turns Passed 4635 | 175 563 2022 1875 Spaces Moved 2343 | 82 176 1261 824 Core 26 | 2 . 24 . Treads 692 | 80 176 436 . Legs . | . . . . Wheels . | . . . . Hover . | . . . . Flight 1625 | . . 801 824 Fastest Speed 37 | 50 160 37 44 Average Speed 160 | 157 160 130 208 Slowest Speed 345 | 160 160 300 345 Overloaded Moves . | . . . . Propulsion Burnouts . | . . . . Robots Hopped . | . . . . Potential Cave-ins . | . . . . Cave-ins Triggered . | . . . . Exploration Rate (%) 48 | 3 35 74 83 Regions Visited 3 Branch Regions 2 Pre-discovered Areas 1 | . . 1 . Known Exits Taken 1 | . . 1 . Unknown Exits Taken 2 | 1 1 . . Scrap Searched . | . . . . Spaces Dug . | . . . . Terrain Destroyed 178 | . . 160 18 Melee . | . . . . Projectile . | . . . . AOE 178 | . . 160 18 Terrain Rammed . | . . . . Walls Destroyed . | . . . . Machines Disabled . | . . . . Actions | -11 -10 -10 -7 --------- Run | Yrd Mat Sub Rec Total 3068 | 101 410 1594 963 Wait 546 | . 204 257 85 Move 2340 | 81 175 1260 824 Hop . | . . . . Pick Up 22 | 1 7 8 6 Fast Attach 11 | 7 . 3 1 Attach 10 | . . 7 3 Detach 4 | . . 4 . Swap 12 | . 3 5 4 Drop 14 | . 1 9 4 Fire 83 | 12 19 41 11 Melee 1 | . . . 1 Ram 3 | . . . 3 Kick . | . . . . Crush 1 | . 1 . . Escape Stasis . | . . . . Rewire 21 | . . . 21 Trap . | . . . . Miscellaneous . | . . . . Route ------- -11/Scrapyard -10/Materials (discovered 2 exits: [*Min] / *Sub) -10/Subcaves (discovered 2 exits: [*Mat] / *Rec) -7/Recycling (discovered 1 exit: [*Fac]) History --------- Turn | Location | Event 9 | -11/Scrapyard | Discovered new exit (range 15) 176 | -11/Scrapyard | Entered Materials 302 | -10/Materials | Build established: Mutant 510 | -10/Materials | Discovered new exit (range 7) 701 | -10/Materials | Discovered new exit (range 6) 739 | -10/Materials | Entered Subcaves 740 | -10/Subcaves | Approached by a straggling Scientist 823 | -10/Subcaves | Discovered new exit (range 9) 849 | -10/Subcaves | Visited 4L-MR0's lab 855 | -10/Subcaves | Found Prototype Special Melee Weapon 1319 | -10/Subcaves | Shifting Twisted Machinery released Mak. Flight Unit 1425 | -10/Subcaves | Ambushed by Subdweller buried in earth 1507 | -10/Subcaves | Learned Materials emergency access door positions 1767 | -10/Subcaves | A swath of the cavern ceiling suddenly collapsed 1825 | -10/Subcaves | Learned location of Zion (-7) 1825 | -10/Subcaves | Met a Zionite searching for "candidates" 2605 | -10/Subcaves | Shifting Twisted Machinery released Barrage Gun 2754 | -10/Subcaves | Discovered new exit (range 16) 2759 | -10/Subcaves | Core integrity fell below 50% 2760 | -10/Subcaves | Identified exit to Recycling 2761 | -10/Subcaves | Entered Recycling 2762 | -7/Recycling | Joined Warlord attack on 0b10 via Recycling 2859 | -7/Recycling | Lost 5 allies 2863 | -7/Recycling | Core integrity fell below 20% 3348 | -7/Recycling | Build established: Commander-Mutant 3464 | -7/Recycling | Lost 3 allies 3743 | -7/Recycling | Build established: Mutant 3829 | -7/Recycling | Discovered new exit (range 16) 4566 | -7/Recycling | Scanned before Scraplab entrance 4579 | -7/Recycling | Angered Scraplab inhabitants 4636 | -7/Recycling | Destroyed by HU-WF9(j) with Overtuned Pulse Rifle Last Messages --------------- you on it. Who recommended you? Anyway, the system is always right, go on in. Not my problem as long as you don't touch anything in here. Just really don't mess with anything in there. Then it'll be my problem, and yours. 04579_ U3-HQS(j) destroyed. 04581_ The unstable cave ceiling collapses. 04608_ Scrap Suit violently self-destructs. 04617_ HU-WF9(j): "Defend the Scraplab!" 04621_ The unstable cave ceiling collapses. 04622_ Lgt. Nuclear Core destroyed. 04630_ HU-WF9(j) cannibalizes Ovr. Titanium Leg to repair Ovr. Titanium Leg. 04630_ Missile Launcher destroyed. 04631_ Guardian 4a destroyed. 04632_ HU-WF9(j) heat spikes uncontrollably. 04633_ Lyr. Light Armor Plating destroyed. 04634_ Critical hit (Burn: +50). Map ----- +----------------------------------------------------+ | | | | | | | | | | | | | | | | | | | | | | | | | | | | | | | | | | | | | | | ???????????????????????????????????????? | | ????????????#######????????????????????? | | ????????????# ##????? " ## #???????? | | ????????????# # "## #???????? | | ????????????##=! / #???????? | | ????????????#[jj# ### "????????? | | ????????????##!@ #?????? ""????????? | | ????????????### ###??????????"?????????? | | ??????????????# #??????????????????????? | | ???????????#### ####???????????????????? | | ???????????# #???????????????????? | | ???????????# #???????????????????? | | ???????????# #???????????????????? | | ???????????# #???????????????????? | | ???????????####u####???????????????????? | | ???######?????# #???????????############ | | ???# ?????# ###########?#! | | ???# ????## ## ! #?# * | | ???# #???# #= = ! #?# [ | | ???# #???# += #?# % | | ???# #???# # #?# % | | ???# #???##### #?# | | ???# ???????# #?# [ | | ???# #???????# #?# %% % | | ???# ######### #?# % | | ???# ## +/! = #?# [ % | | ???# ## ##########?# | | ????#+##+## #??????# ! | | ????# #?###### % | | ????# #?# ]##+########+# | | ????# ### ## #??????# # | +----------------------------------------------------+ Best States ------------- Heat Dissipation 25 Energy Generation 14 Energy Capacity 250 Matter Stores 300 Matter Capacity 300 Sight Range 16 Robot Scan Range 14 Terrain Scan Range 16 Terrain Scan Density 10 Armor Coverage 150 Evasion (%) 62 Recoil Reduction 2 Item Schematics ----------------- Imp. Weapon Shielding | -7/Recycling | Hacked Imp. Remote Datajack | -7/Recycling | Hacked Robot Schematics ------------------ None Fabricated ------------ Nothing Repaired ---------- Nothing Studied --------- None Alien Tech Used ----------------- None Achievements -------------- None Challenges ------------ None Game ------ Seed ReflexChromaticShell Manual? 0 Play Time 00:25:30 Cumulative 126.5 hours Start 2026.04.09 @ 20:55:03 End 2026.04.09 @ 21:14:32 Sessions 1 Manual Loads 0 Difficulty Rogue Special Mode None Game No. 194 Rogue 194 Adventurer 0 Explorer 0 Win Type - Total 1 Types 1/0/0/0/0/0/0/0/0/0 Lore% 50 Gallery% 53 Achievement% 40 Wizard Run 0 Options --------- Layout 1 ASCII 0 Keyboard 1 Movement Arrows Keybinds 0 Fullscreen 1 Font 24/Smallcaps Map View 50x35 Zoom Use 0% Tactical HUD 1 Map Filters NONE Filters NONE Steam 1 RUN: 3e2cc164-b2db-446c-910c-b806f7450c7c